Cogmind - Beta 13 @@@ ROGUE MODE // 2024.05.15 @ 03:07:49 Player: KADW Result: Destroyed by X-57 Shotgunner with Shotgun Performance ------------- Evolutions (3) 1500 Regions Visited (10) 2000 Robots Destroyed (88) 440 Value Destroyed (3331) 3331 Prototype IDs (0) 0 Alien Tech Used (0) 0 Bonus (2001) 2001 TOTAL SCORE: 9272 Bonus ------- High Alert Combat Kills 218 Follower Combat Kills 20 Entered Garrisons 400 Used RIF Installer 1000 Entered DSFs 500 Friendly Fire -137 Cogmind --------- Core Integrity 0/700 Matter 300/300 Energy 336/350 System Corruption 18% Temperature Cool (9) Movement Rolling (115) Ox1 Location -7/DSF Parts ------- > --- POWER (1) -------- (None) > --- PROPULSION (5) --- Medium Treads Compact Wheel VTOL Module > --- UTILITY (5) ------ Large Storage Unit High-capacity Battery Seismic Detector > --- WEAPON (2) ------- (None) > --- INVENTORY (15) --- Improved Ion Engine Light Nuclear Core Light Nuclear Core Improved Deuterium Engine High-capacity Battery (250) High-capacity Battery (250) Improved Sensor Array Relay Coupler [Grunt] (39) Relay Coupler [Sentry] (27) Relay Coupler [Hunter] (20) Relay Coupler [Hunter] (21) Heavy Assault Cannon Great Maul Peak State ------------ > --- POWER ------------ Light Nuclear Core > --- PROPULSION ------- Medium Treads Medium Treads Medium Treads Compact Wheel VTOL Module > --- UTILITY ---------- Large Storage Unit High-capacity Battery Compact Matter Pod Improved Sensor Array Seismic Detector > --- WEAPON ----------- Autogun Gauss Cannon > --- INVENTORY -------- Improved Ion Engine Light Nuclear Core Light Nuclear Core Improved Deuterium Engine High-capacity Battery High-capacity Battery Improved Sensor Array Relay Coupler [Grunt] Relay Coupler [Sentry] Relay Coupler [Hunter] Relay Coupler [Hunter] Heavy Assault Cannon Datajack Great Maul [Rating: 37] Favorites ----------- Power Light Nuclear Core Engine Light Angular Momentum Engine Power Core Light Nuclear Core Propulsion Aluminum Leg Treads Light Treads Leg Aluminum Leg Wheel Compact Wheel Flight Unit VTOL Module Utility Large Storage Unit Device Heat Sink Storage Large Storage Unit Processor Advanced Targeting Computer Hackware Relay Coupler [Grunt] Protection Core Shielding Weapon Particle Cannon Energy Gun Particle Gun Energy Cannon Particle Cannon Ballistic Gun Light Assault Rifle Ballistic Cannon Flak Cannon Launcher Grenade Launcher Impact Weapon Great Maul Special Melee Weapon Datajack Build | -11 -10 -10 -9 -9 -8 -8 -7 -7 -7 -7 ------- Run | Yrd Mat Min Mat Min Mat Gar Fac Gar Fac DSF Slots Evolved 6 | . . . 2 . 2 . 2 . . . Power . | . . . . . . . . . . . Propulsion 3 | . . . 1 . 1 . 1 . . . Utility 3 | . . . 1 . 1 . 1 . . . Weapon . | . . . . . . . . . . . Parts Attached 162 | 6 22 . 37 3 1 16 12 58 6 1 Power 14 | 1 2 . 5 . . 2 . 4 . . Engine 6 | 1 1 . 4 . . . . . . . Core 8 | . 1 . 1 . . 2 . 4 . . Reactor . | . . . . . . . . . . . Propulsion 54 | 2 6 . 13 3 . 6 2 19 3 . Treads 18 | 1 3 . 8 . . 1 1 1 3 . Leg 13 | . . . 2 1 . 5 1 4 . . Wheel 13 | 1 3 . 3 2 . . . 4 . . Hover . | . . . . . . . . . . . Flight 10 | . . . . . . . . 10 . . Utility 30 | 1 3 . 7 . 1 4 4 8 2 . Device 10 | . . . 3 . . 1 2 2 2 . Storage 8 | 1 1 . 1 . . . . 5 . . Processor 2 | . 1 . . . . . 1 . . . Hackware 2 | . . . . . . 1 . 1 . . Protection 8 | . 1 . 3 . 1 2 1 . . . Artifact . | . . . . . . . . . . . Weapon 64 | 2 11 . 12 . . 4 6 27 1 1 Energy Gun 16 | 1 2 . 1 . . 2 1 9 . . Energy Cannon 6 | . 4 . 2 . . . . . . . Ballistic Gun 19 | 1 3 . 6 . . 1 2 6 . . Ballistic Cannon 3 | . . . . . . . 1 1 1 . Launcher 12 | . 2 . 3 . . 1 1 5 . . Special Weapon . | . . . . . . . . . . . Impact Weapon 2 | . . . . . . . . 2 . . Slashing Weapon . | . . . . . . . . . . . Piercing Weapon . | . . . . . . . . . . . Special Melee Weapon 6 | . . . . . . . 1 4 . 1 Unidentified Prototypes . | . . . . . . . . . . . Parts Lost 53 | . 4 . 11 . . 5 . 25 . 8 Power 5 | . . . 2 . . 1 . 1 . 1 Propulsion 24 | . 2 . 5 . . 1 . 14 . 2 Utility 10 | . . . 2 . . 2 . 4 . 2 Weapon 14 | . 2 . 2 . . 1 . 6 . 3 Highest Loss Streak 9 | . 3 . 4 . . 2 . 9 . 7 To Critical Strikes . | . . . . . . . . . . . Average Slot Usage (%) 94 | . 93 100 95 99 86 95 98 90 98 92 Engine 3 | . 8 . 8 . . . . . . . Core 6 | . 5 14 2 11 9 9 7 6 7 6 Treads 10 | . 13 14 15 11 9 6 7 4 21 23 Leg 11 | . . . 6 11 9 27 29 16 . . Wheel 7 | . 13 14 10 10 9 . . 2 7 7 Flight 1 | . . . . . . . . 6 7 7 Device 7 | . . . 11 22 18 10 14 5 11 11 Storage 11 | . 14 14 11 11 9 9 7 11 26 22 Processor 2 | . 1 . . . . . 6 5 . . Hackware 2 | . . . . . . . 7 8 . . Protection 6 | . 7 14 9 . 5 13 . 2 . . Energy Gun 5 | . 6 14 2 . . 4 7 7 . . Energy Cannon 4 | . 7 . 7 11 9 1 . . . . Ballistic Gun 8 | . 13 14 9 11 9 11 4 3 8 6 Naked Turns . | . . . . . . . . . . . Heaviest Build 44 | 14 32 30 42 34 39 39 38 44 44 42 Greatest Support 56 | 20 20 16 20 10 10 40 40 40 56 16 Greatest Overweight (x) 7 | . 3 1 4 3 3 3 1 7 2 2 Average Overweight (x) 1 | . 1 1 2 3 3 . . . 1 1 Largest Inventory Capacity 15 | 8 15 15 15 15 15 15 15 15 15 15 Average Capacity 14 | 7 14 15 15 15 15 15 15 15 15 15 Most Carried 15 | 8 15 15 15 15 15 15 15 15 15 15 Average Carried 14 | 3 13 14 14 14 15 14 14 14 15 14 Final Capacity 15 | 8 15 15 15 15 15 15 15 15 15 15 Final Carried 15 | 8 15 14 15 15 15 15 15 15 15 14 Class Distribution -------------------- 70% | Scavenger-Mutant 24% | Mutant 5% | Bothacker-Mutant Dominant Class ---------------- Mutant | -10/Materials Mutant | -10/Mines Scavenger-Mutant | -9/Materials Scavenger-Mutant | -9/Mines Scavenger-Mutant | -8/Materials Scavenger-Mutant | -8/Garrison Scavenger-Mutant | -7/Factory Scavenger-Mutant | -7/Garrison Bothacker-Mutant | -7/Factory Bothacker-Mutant | -7/DSF Resources | -11 -10 -10 -9 -9 -8 -8 -7 -7 -7 -7 ----------- Run | Yrd Mat Min Mat Min Mat Gar Fac Gar Fac DSF Matter Collected 2354 | 281 185 35 595 57 13 339 10 839 . . Remotely . | . . . . . . . . . . . Salvage Created 2868 | 116 332 . 861 184 . 568 10 797 . . Parts 180 | 8 30 . 64 5 . 23 1 49 . . Haulers Intercepted 1 | . 1 . . . . . . . . . Recyclers Shooed 2 | . 1 . 1 . . . . . . . Parts Field Recycled . | . . . . . . . . . . . Retrieved Matter . | . . . . . . . . . . . Parts Self-Destructed . | . . . . . . . . . . . Prevented . | . . . . . . . . . . . Kills | -11 -10 -10 -9 -9 -8 -8 -7 -7 -7 -7 ------- Run | Yrd Mat Min Mat Min Mat Gar Fac Gar Fac DSF Combat Hostiles Destroyed 76 | . 10 . 22 2 . 14 . 28 . . Guns 33 | . 5 . 5 1 . 9 . 13 . . Cannons 18 | . 3 . 10 1 . 2 . 2 . . AOE 24 | . 2 . 7 . . 3 . 12 . . Classes Destroyed 12 | 2 4 . 3 . . . . 3 . . Worker 3 | . 2 . 1 . . . . . . . Tunneler 1 | 1 . . . . . . . . . . Hauler 1 | . 1 . . . . . . . . . Recycler 3 | 1 . . 1 1 . . . . . . Operator 3 | . . . 2 . . . 1 . . . Swarmer 28 | . 5 . 7 . . 3 . 13 . . Cutter 6 | . . . . . . . . 6 . . Grunt 29 | . 5 . 9 2 . 7 . 6 . . Brawler 1 | . . . . . . . . 1 . . Duelist 2 | . . . 1 . . 1 . . . . Sentry 10 | . . . 5 . . 3 . 2 . . Programmer 1 | . . . . . . . . 1 . . Best Kill Streak 7 | 2 3 . 5 2 . 3 1 7 . . Combat Bots Only 7 | . 3 . 4 1 . 3 . 7 . . Max Kills in Single Turn 4 | 1 1 . 4 1 . 2 1 3 . . Gunslinging . | . . . . . . . . . . . Exploded 3 | . 1 . 3 . . 2 . 2 . . Melee . | . . . . . . . . . . . Uniques/NPCs Destroyed . | . . . . . . . . . . . Combat | -11 -10 -10 -9 -9 -8 -8 -7 -7 -7 -7 -------- Run | Yrd Mat Min Mat Min Mat Gar Fac Gar Fac DSF Hostile Shots Fired 626 | . 78 . 163 15 3 75 . 200 . 92 Missed 162 | . 10 . 38 3 1 20 . 60 . 30 Damage Taken 7179 | . 763 . 1804 168 35 875 89 2462 . 983 Core 1165 | . 144 . 212 . 18 84 23 574 . 110 Absorbed by Shields 23 | . . . . . . . . 23 . . Redirected to Shielding 52 | . 28 . 6 . . 18 . . . . Regen/Repaired (Parts) 84 | . . . 84 . . . . . . . Core Remaining (%) 67 | 100 . 42 . 47 . 81 . . . . Volleys Fired 259 | 7 46 . 74 9 1 53 2 67 . . Largest 2 | 2 2 . 2 2 2 2 2 2 . . Hottest 140 | 70 88 . 98 91 91 91 95 140 . . Shots Fired 458 | 14 78 2 132 18 2 102 3 107 . . Gun 329 | 14 56 2 74 9 1 84 2 87 . . Cannon 107 | . 20 . 52 9 1 15 . 10 . . Launcher 22 | . 2 . 6 . . 3 1 10 . . Special . | . . . . . . . . . . . Kinetic 229 | 7 44 1 68 9 1 64 . 35 . . Thermal 193 | 7 32 1 58 9 1 35 2 48 . . Explosive 22 | . 2 . 6 . . 3 1 10 . . Electromagnetic 14 | . . . . . . . . 14 . . Robot Hit Streak 22 | 6 14 2 12 12 1 11 2 22 . . Robot Miss Streak 7 | 1 6 1 7 1 1 4 1 4 . . Penetration Max . | . . . . . . . . . . . Secondary Targets 2 | . . . . . . . . 2 . . Max Gunslinging Chain 1 | . . . . . . . . 1 . . Shots Hit Robots 310 | 10 43 1 87 13 1 59 5 90 . 1 Core Hits 175 | 3 20 2 40 3 . 28 2 77 . . Critical Kills 1 | . 1 . . . . . . . . . Critical Parts Destroyed 1 | . . . 1 . . . . . . . Critical Strikes 6 | . 1 . 2 . . 1 . 2 . . Burn 4 | . . . 1 . . 1 . 2 . . Destroy 2 | . 1 . 1 . . . . . . . Melee Attacks 21 | . . . . . . . 4 16 . 1 Impact 3 | . . . . . . . . 3 . . Slashing . | . . . . . . . . . . . Piercing . | . . . . . . . . . . . Sneak Attacks 4 | . . . . . . . 4 . . . Combat Hostiles . | . . . . . . . . . . . Follow-up Attacks . | . . . . . . . . . . . Damage Inflicted 6118 | 126 683 25 1583 238 12 1155 46 2250 . . Guns 2822 | 126 369 25 506 95 12 754 6 929 . . Cannons 1475 | . 165 . 674 143 . 208 . 285 . . Explosions 1763 | . 149 . 403 . . 193 40 978 . . Melee 58 | . . . . . . . . 58 . . Ramming . | . . . . . . . . . . . Kinetic 1913 | 35 235 8 439 95 12 562 . 527 . . Thermal 2407 | 91 299 17 741 143 . 400 6 710 . . Explosive 1645 | . 149 . 403 . . 193 40 860 . . Electromagnetic 83 | . . . . . . . . 83 . . Impact 70 | . . . . . . . . 70 . . Slashing . | . . . . . . . . . . . Piercing . | . . . . . . . . . . . Highest Corruption 18 | . 5 5 . . . . . 18 18 18 Average Corruption 12 | . 4 5 . . . . . 17 18 18 Corruption Purged . | . . . . . . . . . . . Corruption Blocked . | . . . . . . . . . . . Effects 32 | . 4 5 . . . . . 11 5 7 Message Errors 5 | . 1 1 . . . . . . 2 1 Matter Fused 7 | . 1 . . . . . . 5 . 1 Heat Flow Errors 4 | . . . . . . . . 2 1 1 Energy Discharges 5 | . 2 1 . . . . . 1 1 . Data Loss (minor) 3 | . . 1 . . . . . 1 . 1 Misfires 4 | . . 2 . . . . . 2 . . Alerts 2 | . . . . . . . . . 1 1 Misdirections 2 | . . . . . . . . . . 2 Overload Shots . | . . . . . . . . . . . Overflow Damage 131 | . 13 . . 19 . 14 10 75 . . Projectiles 20 | . 1 . . 19 . . . . . . Explosions 111 | . 12 . . . . 14 10 75 . . Melee . | . . . . . . . . . . . Knockbacks 4 | . . . . . . . . 4 . . Impact 1 | . . . . . . . . 1 . . Kinetic 3 | . . . . . . . . 3 . . Secondary . | . . . . . . . . . . . Self-Inflicted Damage 420 | . 56 . 36 . . 12 . 316 . . Shots 15 | . 2 . 1 . . 1 . 11 . . Rammed . | . . . . . . . . . . . Targets Rammed . | . . . . . . . . . . . Kicked . | . . . . . . . . . . . Crushed . | . . . . . . . . . . . Highest Temperature 498 | 45 498 28 456 22 3 75 . 250 216 116 Average Temperature 101 | 19 188 13 105 12 2 28 . 35 121 68 Received Heat Transfer 1662 | . 273 . 645 81 18 360 . 195 . 90 Effects 13 | . 7 . 6 . . . . . . . Shutdowns 3 | . 2 . 1 . . . . . . . Energy Bleed 1 | . 1 . . . . . . . . . Interference 1 | . . . 1 . . . . . . . Matter Decay 1 | . 1 . . . . . . . . . Damage (minor) 3 | . 3 . . . . . . . . . Damage (major) 4 | . . . 4 . . . . . . . Siege Activations . | . . . . . . . . . . . Robots Corrupted . | . . . . . . . . . . . Combat Hostiles . | . . . . . . . . . . . Parts Fried . | . . . . . . . . . . . Impact Corruptions . | . . . . . . . . . . . Robots Melted 1 | . . . . . . . . 1 . . Combat Hostiles 1 | . . . . . . . . 1 . . Parts Melted 5 | . 1 . . . . 2 . 2 . . Heat Transferred 5075 | 259 629 37 1443 259 . 925 10 1513 . . Parts Sabotaged . | . . . . . . . . . . . Parts Stolen . | . . . . . . . . . . . Parts Stripped . | . . . . . . . . . . . Power Chain Reactions 2 | . . . . . . . . 2 . . Alert | -11 -10 -10 -9 -9 -8 -8 -7 -7 -7 -7 ------- Run | Yrd Mat Min Mat Min Mat Gar Fac Gar Fac DSF Peak Influence 822 | 10 195 5 265 155 80 479 305 822 431 325 Initial 431 | . 6 5 1 70 60 53 251 213 431 305 Average 243 | 4 59 5 96 108 68 279 283 559 431 311 Maximum Alert Level 3 | . . . 1 . . 2 1 3 2 1 Low Security (%) 53 | 100 100 100 86 100 100 29 . . . . Level 1 23 | . . . 13 . . 49 100 25 . 100 Level 2 17 | . . . . . . 20 . 52 100 . Level 3 5 | . . . . . . . . 22 . . Level 4 . | . . . . . . . . . . . Level 5 . | . . . . . . . . . . . High Security . | . . . . . . . . . . . Max Security . | . . . . . . . . . . . Squads Dispatched 6 | . 1 . 4 . . . . . . 1 Investigation 2 | . . . 2 . . . . . . . Extermination . | . . . . . . . . . . . Reinforcement 4 | . 1 . 2 . . . . . . 1 Assault . | . . . . . . . . . . . Garrison . | . . . . . . . . . . . Intercept . | . . . . . . . . . . . Searches Triggered . | . . . . . . . . . . . Construction Impeded . | . . . . . . . . . . . Haulers Reinforced . | . . . . . . . . . . . Active Scanning Responses . | . . . . . . . . . . . Cargo Convoy Interrupts . | . . . . . . . . . . . Stealth | -11 -10 -10 -9 -9 -8 -8 -7 -7 -7 -7 --------- Run | Yrd Mat Min Mat Min Mat Gar Fac Gar Fac DSF Distress Signals 6 | . 2 . 4 . . . . . . . Communications Jammed . | . . . . . . . . . . . Distress Signals . | . . . . . . . . . . . Times Spotted 139 | . 23 . 45 5 3 15 1 37 . 10 Peak Tracking Total 8 | . 7 . 5 2 3 4 1 8 . 8 Tactical Retreats 12 | . 1 . 4 1 . 2 . 2 . 2 Traps | -11 -10 -10 -9 -9 -8 -8 -7 -7 -7 -7 ------- Run | Yrd Mat Min Mat Min Mat Gar Fac Gar Fac DSF Traps Triggered 19 | . 6 . . . . 2 1 10 . . Indirectly . | . . . . . . . . . . . Trap Hack Attempts . | . . . . . . . . . . . Triggered . | . . . . . . . . . . . Disarmed 7 | . . . 7 . . . . . . . Reprogrammed . | . . . . . . . . . . . Reused . | . . . . . . . . . . . Traps Extracted . | . . . . . . . . . . . Installed . | . . . . . . . . . . . Triggered . | . . . . . . . . . . . Machines | -11 -10 -10 -9 -9 -8 -8 -7 -7 -7 -7 ---------- Run | Yrd Mat Min Mat Min Mat Gar Fac Gar Fac DSF Machines Disabled 7 | . 2 . . . . 1 1 3 . . Max in Single Turn 1 | . 1 . . . . 1 1 1 . . Garrison Relay 4 | . . . . . . 1 . 3 . . Machines Repaired . | . . . . . . . . . . . Machines Dismantled . | . . . . . . . . . . . Machines Sabotaged . | . . . . . . . . . . . Overloaded Fab Kills . | . . . . . . . . . . . Hacking | -11 -10 -10 -9 -9 -8 -8 -7 -7 -7 -7 --------- Run | Yrd Mat Min Mat Min Mat Gar Fac Gar Fac DSF Machines Accessed 24 | . 6 1 9 . 2 1 2 1 2 . Terminals 17 | . 6 . 6 . 1 1 . 1 2 . Fabricators . | . . . . . . . . . . . Repair Stations 1 | . . . 1 . . . . . . . Recycling Units . | . . . . . . . . . . . Scanalyzers 3 | . . . 2 . . . 1 . . . Garrison Access 2 | . . . . . 1 . 1 . . . Total Hacks 56 | . 12 1 32 . 2 2 3 2 2 . Successful 34 | . 5 1 23 . 2 1 1 . 1 . Failed 22 | . 7 . 9 . . 1 2 2 1 . Catastrophic 5 | . 2 . 1 . . 1 . . 1 . Database Lockouts . | . . . . . . . . . . . Manual 22 | . 9 . 11 . 1 . . . 1 . Terminals 41 | . 12 . 22 . 1 2 . 2 2 . Fabricators . | . . . . . . . . . . . Repair Stations 2 | . . . 2 . . . . . . . Recycling Units . | . . . . . . . . . . . Scanalyzers 10 | . . . 8 . . . 2 . . . Garrison Access 2 | . . . . . 1 . 1 . . . Terminal Hacks 14 | . 3 1 8 . . 1 . . 1 . Record 1 | . . . 1 . . . . . . . Robot Analysis 1 | . . . 1 . . . . . . . Open Door 1 | . . 1 . . . . . . . . Open DSF 1 | . . . . . . . . . 1 . Terminal Index 1 | . . . 1 . . . . . . . Unreport Threat 3 | . 2 . 1 . . . . . . . Disarm Traps 2 | . . . 2 . . . . . . . Reprogram Traps 1 | . . . 1 . . . . . . . Zone Layout 2 | . 1 . 1 . . . . . . . Garrison Registry 1 | . . . . . . 1 . . . . Fabricator Hacks . | . . . . . . . . . . . Repair Station Hacks 2 | . . . 2 . . . . . . . Scan Component 1 | . . . 1 . . . . . . . Repair 1 | . . . 1 . . . . . . . Recycling Unit Hacks . | . . . . . . . . . . . Scanalyzer 7 | . . . 7 . . . . . . . Insert Component 3 | . . . 3 . . . . . . . Analyze 4 | . . . 4 . . . . . . . Garrison Access Hacks 2 | . . . . . 1 . 1 . . . Unlock Access 2 | . . . . . 1 . 1 . . . Unauthorized Hacks 9 | . 2 . 6 . 1 . . . . . Terminals 8 | . 2 . 5 . 1 . . . . . Botnet 8 | . 2 . 5 . 1 . . . . . Fabricators . | . . . . . . . . . . . Repair Stations . | . . . . . . . . . . . Recycling Units . | . . . . . . . . . . . Scanalyzers 1 | . . . 1 . . . . . . . Extract 1 | . . . 1 . . . . . . . Garrison Access . | . . . . . . . . . . . Data Cores Recovered . | . . . . . . . . . . . Used . | . . . . . . . . . . . Hacking Detections 18 | . 4 . 8 . . 1 2 1 2 . Full Trace Events 2 | . . . 1 . . 1 . . . . Feedback Events . | . . . . . . . . . . . Feedback Blocked . | . . . . . . . . . . . Robot Schematics Acquired . | . . . . . . . . . . . Robots Built . | . . . . . . . . . . . Authchips . | . . . . . . . . . . . Time . | . . . . . . . . . . . Total Robot Build Rating . | . . . . . . . . . . . Part Schematics Acquired 6 | . . . 6 . . . . . . . Parts Built . | . . . . . . . . . . . Authchips . | . . . . . . . . . . . Time . | . . . . . . . . . . . Total Part Build Rating . | . . . . . . . . . . . Parts Repaired 1 | . . . 1 . . . . . . . Time 26 | . . . 26 . . . . . . . Parts Recycled . | . . . . . . . . . . . Recycled Matter . | . . . . . . . . . . . Retrieved Matter . | . . . . . . . . . . . Retrieved Components . | . . . . . . . . . . . Parts Scanalyzed 3 | . . . 3 . . . . . . . Part Schematics Acquired 3 | . . . 3 . . . . . . . Parts Damaged . | . . . . . . . . . . . Bothacking | -11 -10 -10 -9 -9 -8 -8 -7 -7 -7 -7 ------------ Run | Yrd Mat Min Mat Min Mat Gar Fac Gar Fac DSF Used RIF Installer 2 | . . . . . . 1 . 1 . . Coupler Efficiency 1 | . . . . . . . . 1 . . Robots Hacked 8 | . . . . . . . 1 7 . . Non-combat 1 | . . . . . . . 1 . . . Combat 7 | . . . . . . . . 7 . . Robot Hacks Applied 13 | . . . . . . . 3 10 . . parse_system 1 | . . . . . . . 1 . . . no_distress 1 | . . . . . . . 1 . . . check_alert 1 | . . . . . . . 1 . . . tweak_propulsion 1 | . . . . . . . . 1 . . link_complan 1 | . . . . . . . . 1 . . disrupt_area 1 | . . . . . . . . 1 . . spike_heat 1 | . . . . . . . . 1 . . overwrite_iff 5 | . . . . . . . . 5 . . formatsys_high 1 | . . . . . . . . 1 . . Relay Couplers Released 14 | . . . . . . 3 . 11 . . Machine Destruction 14 | . . . . . . 3 . 11 . . Attached 2 | . . . . . . 1 . 1 . . Fabnet Peak Effective % . | . . . . . . . . . . . Robots Rewired . | . . . . . . . . . . . Allies Hacked . | . . . . . . . . . . . Hacks Repelled . | . . . . . . . . . . . Allies | -11 -10 -10 -9 -9 -8 -8 -7 -7 -7 -7 -------- Run | Yrd Mat Min Mat Min Mat Gar Fac Gar Fac DSF Total Allies 7 | . . 1 . . . . . 6 . . Largest Group 1 | . . 1 1 . . . . 1 . . Highest-Rated Group 31 | . . 31 31 . . . . 16 . . Highest-Rated Ally 31 | . . 31 31 . . . . 16 . . Total Orders . | . . . . . . . . . . . Ally Attacks 21 | . . . 3 . . . . 18 . . Total Damage 179 | . . . 44 . . . . 135 . . Kills 1 | . . . . . . . . 1 . . Allies Corrupted . | . . . . . . . . . . . Allies Melted . | . . . . . . . . . . . Intel | -11 -10 -10 -9 -9 -8 -8 -7 -7 -7 -7 ------- Run | Yrd Mat Min Mat Min Mat Gar Fac Gar Fac DSF Robot Analysis Total 1 | . . . 1 . . . . . . . Derelict Logs Recovered . | . . . . . . . . . . . Drone Launches . | . . . . . . . . . . . Drone Recoveries . | . . . . . . . . . . . Exploration | -11 -10 -10 -9 -9 -8 -8 -7 -7 -7 -7 ------------- Run | Yrd Mat Min Mat Min Mat Gar Fac Gar Fac DSF Turns Passed 5372 | 145 1009 176 1317 151 70 569 375 1331 129 100 Spaces Moved 3173 | 70 725 153 651 91 52 230 264 770 91 76 Core 2 | 1 . . . . . . . 1 . . Treads 231 | 64 6 . 149 . . . 10 . 2 . Legs 941 | . . . . . . 206 254 481 . . Wheels 1999 | 5 719 153 502 91 52 24 . 288 89 76 Hover . | . . . . . . . . . . . Flight . | . . . . . . . . . . . Fastest Speed 50 | 50 100 115 110 125 125 120 120 115 130 115 Average Speed 131 | 154 115 115 152 125 125 157 129 124 131 129 Slowest Speed 400 | 160 240 115 240 125 125 190 240 400 240 130 Overloaded Moves . | . . . . . . . . . . . Propulsion Burnouts . | . . . . . . . . . . . Robots Hopped . | . . . . . . . . . . . Cave-ins Triggered . | . . . . . . . . . . . Exploration Rate (%) 38 | 5 93 38 72 23 6 38 7 64 4 71 Regions Visited 10 Branch Regions 2 Pre-discovered Areas . | . . . . . . . . . . . Known Exits Taken 3 | . . . . . 1 . 1 . 1 . Unknown Exits Taken 5 | 1 1 1 1 1 . . . . . . Scrap Searched 2 | . . 2 . . . . . . . . Spaces Dug . | . . . . . . . . . . . Terrain Destroyed 97 | . 13 . 35 . . 14 4 31 . . Melee . | . . . . . . . . . . . Projectile . | . . . . . . . . . . . AOE 97 | . 13 . 35 . . 14 4 31 . . Terrain Rammed . | . . . . . . . . . . . Walls Destroyed . | . . . . . . . . . . . Machines Disabled . | . . . . . . . . . . . Actions | -11 -10 -10 -9 -9 -8 -8 -7 -7 -7 -7 --------- Run | Yrd Mat Min Mat Min Mat Gar Fac Gar Fac DSF Total 3921 | 90 826 153 858 110 54 339 292 1023 98 78 Wait 101 | . 2 . 59 6 . 12 . 22 . . Move 3164 | 69 724 152 650 90 52 229 263 769 90 76 Hop . | . . . . . . . . . . . Pick Up 74 | 8 19 . 18 . . 11 3 15 . . Fast Attach 61 | 6 11 . 12 1 1 4 5 17 4 . Attach 36 | . 5 . 9 1 . 5 1 14 . 1 Detach 5 | . . . 1 . . 1 1 2 . . Swap 65 | . 6 . 16 1 . 7 6 27 2 . Drop 70 | . 13 1 19 2 . 12 7 14 2 . Fire 259 | 7 46 . 74 9 1 53 2 67 . . Melee 21 | . . . . . . . 4 16 . 1 Ram . | . . . . . . . . . . . Kick . | . . . . . . . . . . . Crush . | . . . . . . . . . . . Escape Stasis 65 | . . . . . . 5 . 60 . . Rewire . | . . . . . . . . . . . Trap . | . . . . . . . . . . . Miscellaneous . | . . . . . . . . . . . Route ------- -11/Scrapyard -10/Materials (discovered 4 exits: *Mat x3 / *Min) -10/Mines -9/Materials (discovered 2 exits: *Mat / [*Min]) -9/Mines -8/Materials -8/Garrison (discovered 3 exits: *Fac x3) -7/Factory -7/Garrison (discovered 2 exits: *Fac x2) -7/Factory -7/DSF (discovered 1 exit: [*Fac]) History --------- Turn | Location | Event 6 | -11/Scrapyard | Discovered new exit (range 15) 146 | -11/Scrapyard | Entered Materials 205 | -10/Materials | Discovered new exit (range 15) 287 | -10/Materials | Discovered new exit (range 11) 314 | -10/Materials | Build established: Mutant 733 | -10/Materials | Lost 3 parts (1n2w) 872 | -10/Materials | Discovered new exit (range 3) 972 | -10/Materials | Core integrity fell below 50% 1107 | -10/Materials | Discovered new exit (range 11) 1155 | -10/Materials | Entered Mines 1158 | -10/Mines | Received a Mining Laser from a helpful Derelict 1237 | -10/Mines | Met a Derelict who couldn't figure out how to use a Trap Extractor 1296 | -10/Mines | Discovered new exit (range 4) 1331 | -10/Mines | Entered Materials 1331 | -9/Materials | Accompanied by 1 ally 1331 | -9/Materials | Evolved 2 slots: Propulsion x1, Utility x1 1543 | -9/Materials | Discovered new exit (range 16) 1668 | -9/Materials | Build established: Scavenger-Mutant 2046 | -9/Materials | Lost 4 parts (2n1u1w) 2138 | -9/Materials | Repaired Lgt. Armor Plating 2444 | -9/Materials | Discovered new exit (range 13) 2467 | -9/Materials | Core integrity fell below 50% 2648 | -9/Materials | Entered Mines 2659 | -9/Mines | Met a Derelict bent on vengeance 2783 | -9/Mines | Discovered new exit (range 8) 2799 | -9/Mines | Entered Materials 2799 | -8/Materials | Evolved 2 slots: Propulsion x1, Utility x1 2869 | -8/Materials | Identified exit to Garrison 2869 | -8/Materials | Entered Garrison 3035 | -8/Garrison | Discovered new exit (range 38) 3035 | -8/Garrison | Discovered new exit (range 78) 3035 | -8/Garrison | Discovered new exit (range 63) 3289 | -8/Garrison | Triggered checkpoint 3311 | -8/Garrison | Installed Relay Interface Framework 3379 | -8/Garrison | Garrison Relay disabled 3438 | -8/Garrison | Entered Factory 3438 | -7/Factory | Evolved 2 slots: Propulsion x1, Utility x1 3811 | -7/Factory | Identified exit to Garrison 3813 | -7/Factory | Entered Garrison 3897 | -7/Garrison | Triggered checkpoint 3993 | -7/Garrison | Discovered new exit (range 8) 4093 | -7/Garrison | Triggered checkpoint 4149 | -7/Garrison | Garrison Relay disabled 4229 | -7/Garrison | Triggered checkpoint 4290 | -7/Garrison | Discovered new exit (range 10) 4341 | -7/Garrison | Triggered checkpoint 4376 | -7/Garrison | Garrison Relay disabled 4510 | -7/Garrison | Triggered checkpoint 4569 | -7/Garrison | Destroyed 7 combat bots 4575 | -7/Garrison | Lost 6 parts (4n2w) 4717 | -7/Garrison | Triggered checkpoint 4740 | -7/Garrison | Core integrity fell below 50% 4774 | -7/Garrison | Lost 6 parts (4n2w) 4827 | -7/Garrison | Expanded RIF knowledge: Coupler Efficiency 4916 | -7/Garrison | Core integrity fell below 20% 4916 | -7/Garrison | System corruption reached 10% 4935 | -7/Garrison | Lost 5 allies 4951 | -7/Garrison | Lost 9 parts (1p3n3u2w) 5080 | -7/Garrison | Garrison Relay disabled 5144 | -7/Garrison | Entered Factory 5273 | -7/Factory | Identified exit to DSF 5273 | -7/Factory | Entered DSF 5291 | -7/DSF | Additional patrols routed to DSF 5362 | -7/DSF | Discovered new exit (range 15) 5373 | -7/DSF | Destroyed by X-57 Shotgunner with Shotgun Last Messages --------------- 05332_ System corrupted: Matter fused (-9). 05338_ X-57 Shotgunner springs to life. 05350_ System corrupted: IFF burst signal emitted. 05357_ C-30 ARC bursts open, deploying its payload. 05357_ B-48 Gladiator unfolds itself. 05357_ G-47 Trooper unfolds itself. 05362_ EXIT=FOUND 05362_ Knocked back. 05364_ Autogun destroyed. 05364_ Knocked back. 05365_ Gauss Cannon destroyed. 05366_ Penetrated by Slug. 05366_ Lgt. Nuclear Core destroyed. 05366_ Knocked back. 05367_ System corrupted: Heat flow error (+170). 05369_ Com. Matter Pod destroyed. 05372_ Med. Treads destroyed. 05373_ Jacked G-47 Trooper... 05373_ Med. Treads destroyed. 05373_ Datajack destroyed. Map ----- +----------------------------------------------------+ | | | | | | | | | | | | | | | ???????????????????????????????????? | | ???????????????????????????????????? | | ???????????????????????????????????? | | ???????????????????????????????????? | | ???????????????????????????????????? | | ???????????????????????????????????? | | ???????????????????????#"#?????????? | | ??????????????????????#"""?????????? | | ??????????????????????#""""????????? | | ??????????????????????? <"????????? | | ??????????????????????? "????????? | | ??????????????????????? "????????? | | ???????????????????????# #????????? | | ?????????????????????### #????????? | | ??????????????????????&&g%&????????? | | ???????????????????????& &????????? | | ?????????????????????###g ##???????? | | ?????????????????????#&&g #???????? | | ?????????????????????#&& @ #???????? | | ?????????????????????#&& b#???????? | | ###???#???????#???###### ###??????? | | ==#?!!#???????#!!?# ?# !!#??????? | | ==#!!!## ##!!!# ## !!##?????? | | ==%#?????? | | ==##?????? | | H xx==#??????? | | //#[[[#? ##!!!# ##%x #??????? | | ?/#?????# #?#!??# ?# #??????? | | ??????### ###???###### ###??????? | | ???????!! !!???????#[[ [#???????? | | ???????!! !!???????#[[ [#???????? | | ????????! !????????#[[ [#???????? | | ??????### ###??????### ##???????? | | ??????#]] #??????# #???????? | | ??????#]] #??????# #???????? | | #######]] ########## ##???????? | | ==# #?# #?# #[[### ###??????? | | ==# ### ### #[[## ""###????? | | """""????? | | !% ""##"????? | | # #!!^!! %#]]]#[[##"""""#??????? | | #######!!!!! #########"""""#??????? | | ??????#### ####???????##"####??????? | +----------------------------------------------------+ Best States ------------- Heat Dissipation 48 Energy Generation 18 Energy Capacity 910 Matter Stores 446 Matter Capacity 450 Sight Range 16 Robot Scan Range 15 Terrain Scan Density 10 Armor Coverage 150 Core Shielding 20 Melee Speed Boost 20 Evasion (%) 55 Targeting Accuracy 8 Recoil Reduction 3 Relay Coupler Types 1 Relay Coupler Value 48 Item Schematics ----------------- Beamcaster | -9/Materials | Scanalyzed Lrg. Storage Unit | -9/Materials | Scanalyzed Ion Engine | -9/Materials | Scanalyzed Spread Laser | -9/Materials | Extracted Med. Battery | -9/Materials | Extracted Tractor Beam | -9/Materials | Extracted Robot Schematics ------------------ None Fabricated ------------ Nothing Alien Tech Used ----------------- None Achievements -------------- Assimilation Complete Challenges ------------ None Game ------ Seed NeutronStormBattery Manual? 0 Play Time 01:18:46 Cumulative 99.8 hours Start 2024.05.15 @ 01:39:44 End 2024.05.15 @ 03:07:49 Sessions 1 Manual Loads 0 Difficulty Rogue Special Mode None Game No. 52 Rogue 52 Adventurer 0 Explorer 0 Win Type - Total 4 Types 4/0/0/0/0/0/0/0/0 Lore% 51 Gallery% 60 Achievement% 46 Wizard Run 0 Options --------- Layout 0 ASCII 1 Keyboard 0 Movement Mouse Keybinds 0 Fullscreen 1 Font 20/X11 Map View 66x50 Zoom Use 0% Tactical HUD 1 Map Filters NONE Filters NONE Steam 1 RUN: 4034bc48-3ef6-4dad-a643-836b5af8ebb7